Cogmind - Beta 13 @@@ ROGUE MODE // 2024.04.08 @ 17:51:19 Player: NeoBoaz Result: Destroyed by A7-VTL(R) with Subdweller Beam Cannon Performance ------------- Evolutions (0) 0 Regions Visited (3) 600 Robots Destroyed (26) 130 Value Destroyed (526) 526 Prototype IDs (0) 0 Alien Tech Used (0) 0 Bonus (81) 81 TOTAL SCORE: 1337 Bonus ------- Follower Combat Kills 81 Cogmind --------- Core Integrity 0/250 Matter 399/450 Energy 100/100 System Corruption 0% Temperature Cool (9) Movement Core (400) Ox7 Location -10/Subcaves Parts ------- > --- POWER (1) -------- (None) > --- PROPULSION (2) --- (None) > --- UTILITY (2) ------ Large Storage Unit Large Matter Pod > --- WEAPON (2) ------- (None) > --- INVENTORY (15) --- Ion Engine Improved Ion Engine Light Nuclear Core Aluminum Leg Aluminum Leg Aluminum Leg Sensor Array Signal Interpreter Improved Terrain Scanner Seismic Detector Medium Armor Plating Scrap Shield Peak State ------------ > --- POWER ------------ Light Nuclear Core > --- PROPULSION ------- Aluminum Leg Aluminum Leg > --- UTILITY ---------- Large Storage Unit Large Matter Pod > --- WEAPON ----------- Assault Rifle Mining Laser > --- INVENTORY -------- Ion Engine Improved Ion Engine Light Nuclear Core Aluminum Leg Aluminum Leg Aluminum Leg Sensor Array Signal Interpreter Improved Terrain Scanner Seismic Detector Medium Armor Plating Scrap Shield Assault Rifle Grenade Launcher [Rating: 11] Favorites ----------- Power Improved Ion Engine Engine Improved Ion Engine Power Core Light Nuclear Core Propulsion Aluminum Leg Leg Aluminum Leg Utility Large Matter Pod Storage Large Matter Pod Weapon Assault Rifle Ballistic Gun Assault Rifle Launcher Grenade Launcher Special Weapon Mining Laser Build | -11 -10 -10 -10 ------- Run | Yrd Mat Min Sub Slots Evolved . | . . . . Power . | . . . . Propulsion . | . . . . Utility . | . . . . Weapon . | . . . . Parts Attached 21 | 6 9 4 2 Power 4 | 1 1 2 . Engine 2 | 1 1 . . Core 2 | . . 2 . Reactor . | . . . . Propulsion 5 | 2 2 1 . Treads . | . . . . Leg 5 | 2 2 1 . Wheel . | . . . . Hover . | . . . . Flight . | . . . . Utility 5 | 1 4 . . Device . | . . . . Storage 5 | 1 4 . . Processor . | . . . . Hackware . | . . . . Protection . | . . . . Artifact . | . . . . Weapon 7 | 2 2 1 2 Energy Gun . | . . . . Energy Cannon . | . . . . Ballistic Gun 5 | 2 2 . 1 Ballistic Cannon . | . . . . Launcher 1 | . . . 1 Special Weapon 1 | . . 1 . Impact Weapon . | . . . . Slashing Weapon . | . . . . Piercing Weapon . | . . . . Special Melee Weapon . | . . . . Unidentified Prototypes . | . . . . Parts Lost 8 | . . 1 7 Power 1 | . . . 1 Propulsion 2 | . . . 2 Utility . | . . . . Weapon 5 | . . 1 4 Highest Loss Streak 6 | . . 1 6 To Critical Strikes . | . . . . Average Slot Usage (%) 98 | . 97 99 95 Engine 8 | . 14 7 . Core 4 | . . 7 13 Leg 27 | . 28 28 27 Storage 27 | . 25 28 28 Ballistic Gun 24 | . 28 24 11 Special Weapon 3 | . . 3 13 Naked Turns . | . . . . Heaviest Build 34 | 11 34 34 31 Greatest Support 20 | 20 20 20 20 Greatest Overweight (x) 7 | 1 1 1 7 Average Overweight (x) . | . . 1 1 Largest Inventory Capacity 15 | 8 15 15 15 Average Capacity 12 | 7 8 15 15 Most Carried 15 | 2 9 13 15 Average Carried 9 | . 5 11 14 Final Capacity 15 | 8 15 15 15 Final Carried 13 | 2 9 13 13 Class Distribution -------------------- 100% | Mutant Dominant Class ---------------- Mutant | -10/Materials Mutant | -10/Mines Mutant | -10/Subcaves Resources | -11 -10 -10 -10 ----------- Run | Yrd Mat Min Sub Matter Collected 833 | 237 447 149 . Remotely . | . . . . Salvage Created 627 | . 428 132 67 Parts 55 | . 35 16 4 Haulers Intercepted . | . . . . Recyclers Shooed 4 | . 4 . . Parts Field Recycled . | . . . . Retrieved Matter . | . . . . Parts Self-Destructed 5 | . . . 5 Prevented . | . . . . Kills | -11 -10 -10 -10 ------- Run | Yrd Mat Min Sub Combat Hostiles Destroyed 19 | . 11 5 3 Guns 18 | . 11 5 2 AOE 1 | . . . 1 Classes Destroyed 8 | . 6 1 1 Worker 2 | . 2 . . Builder 2 | . 1 1 . Tunneler 1 | . . 1 . Recycler 1 | . 1 . . Watcher 1 | . 1 . . Swarmer 8 | . 5 3 . Grunt 8 | . 6 2 . Subdweller 3 | . . . 3 Best Kill Streak 5 | . 5 3 3 Combat Bots Only 4 | . 4 2 3 Max Kills in Single Turn 2 | . 2 1 1 Gunslinging 1 | . 1 . . Exploded 1 | . . . 1 Melee . | . . . . Uniques/NPCs Destroyed . | . . . . Combat | -11 -10 -10 -10 -------- Run | Yrd Mat Min Sub Hostile Shots Fired 112 | . 58 21 33 Missed 42 | . 19 9 14 Damage Taken 1115 | . 384 126 605 Core 258 | . 47 12 199 Absorbed by Shields . | . . . . Core Remaining (%) 100 | 100 . . . Volleys Fired 76 | 1 35 28 12 Largest 2 | 2 2 2 2 Hottest 100 | 40 40 100 100 Shots Fired 127 | 2 70 41 14 Gun 107 | 2 70 33 2 Cannon . | . . . . Launcher 4 | . . . 4 Special 16 | . . 8 8 Kinetic 107 | 2 70 33 2 Thermal 16 | . . 8 8 Explosive 4 | . . . 4 Electromagnetic . | . . . . Robot Hit Streak 6 | . 4 6 5 Robot Miss Streak 8 | 2 8 4 2 Penetration Max . | . . . . Secondary Targets 4 | . 2 2 . Max Gunslinging Chain 1 | . 1 1 . Shots Hit Robots 51 | . 29 17 5 Core Hits 41 | . 23 10 8 Critical Kills . | . . . . Critical Parts Destroyed . | . . . . Critical Strikes . | . . . . Melee Attacks . | . . . . Impact . | . . . . Slashing . | . . . . Piercing . | . . . . Sneak Attacks . | . . . . Combat Hostiles . | . . . . Follow-up Attacks . | . . . . Damage Inflicted 995 | . 450 253 292 Guns 708 | . 450 229 29 Cannons . | . . . . Explosions 263 | . . . 263 Melee . | . . . . Ramming . | . . . . Kinetic 708 | . 450 229 29 Thermal 24 | . . 24 . Explosive 263 | . . . 263 Electromagnetic . | . . . . Impact . | . . . . Slashing . | . . . . Piercing . | . . . . Highest Corruption . | . . . . Average Corruption . | . . . . Corruption Purged . | . . . . Corruption Blocked . | . . . . Overload Shots . | . . . . Overflow Damage . | . . . . Projectiles . | . . . . Explosions . | . . . . Melee . | . . . . Knockbacks . | . . . . Impact . | . . . . Kinetic . | . . . . Secondary . | . . . . Self-Inflicted Damage . | . . . . Shots . | . . . . Rammed . | . . . . Targets Rammed . | . . . . Kicked . | . . . . Crushed . | . . . . Highest Temperature 224 | . 6 224 . Average Temperature 96 | . 6 110 . Received Heat Transfer 273 | . 144 45 84 Siege Activations . | . . . . Robots Corrupted . | . . . . Combat Hostiles . | . . . . Parts Fried . | . . . . Impact Corruptions . | . . . . Robots Melted . | . . . . Combat Hostiles . | . . . . Parts Melted 1 | . . 1 . Heat Transferred 50 | . . 50 . Parts Sabotaged . | . . . . Parts Stolen . | . . . . Parts Stripped . | . . . . Power Chain Reactions . | . . . . Alert | -11 -10 -10 -10 ------- Run | Yrd Mat Min Sub Peak Influence 175 | . 175 145 . Initial 9 | . . 9 . Average 60 | . 70 54 . Maximum Alert Level . | . . . . Low Security (%) 100 | 100 100 100 . Level 1 . | . . . . Level 2 . | . . . . Level 3 . | . . . . Level 4 . | . . . . Level 5 . | . . . . High Security . | . . . . Max Security . | . . . . Squads Dispatched 2 | . 2 . . Investigation 1 | . 1 . . Extermination . | . . . . Reinforcement 1 | . 1 . . Assault . | . . . . Garrison . | . . . . Intercept . | . . . . Searches Triggered . | . . . . Construction Impeded . | . . . . Haulers Reinforced . | . . . . Active Scanning Responses . | . . . . Cargo Convoy Interrupts . | . . . . Stealth | -11 -10 -10 -10 --------- Run | Yrd Mat Min Sub Distress Signals 1 | . 1 . . Communications Jammed . | . . . . Distress Signals . | . . . . Times Spotted 35 | . 18 8 9 Peak Tracking Total 5 | . 5 3 5 Tactical Retreats 1 | . 1 . . Traps | -11 -10 -10 -10 ------- Run | Yrd Mat Min Sub Traps Triggered . | . . . . Indirectly . | . . . . Trap Hack Attempts . | . . . . Triggered . | . . . . Disarmed . | . . . . Reprogrammed . | . . . . Reused . | . . . . Traps Extracted . | . . . . Installed . | . . . . Triggered . | . . . . Machines | -11 -10 -10 -10 ---------- Run | Yrd Mat Min Sub Machines Disabled . | . . . . Max in Single Turn . | . . . . Machines Repaired . | . . . . Machines Dismantled . | . . . . Machines Sabotaged . | . . . . Overloaded Fab Kills . | . . . . Hacking | -11 -10 -10 -10 --------- Run | Yrd Mat Min Sub Machines Accessed 6 | . 6 . . Terminals 4 | . 4 . . Fabricators . | . . . . Repair Stations . | . . . . Recycling Units 2 | . 2 . . Scanalyzers . | . . . . Garrison Access . | . . . . Total Hacks 14 | . 14 . . Successful 7 | . 7 . . Failed 7 | . 7 . . Catastrophic 2 | . 2 . . Database Lockouts . | . . . . Manual 8 | . 8 . . Terminals 9 | . 9 . . Fabricators . | . . . . Repair Stations . | . . . . Recycling Units 5 | . 5 . . Scanalyzers . | . . . . Garrison Access . | . . . . Terminal Hacks 2 | . 2 . . Disarm Traps 1 | . 1 . . Zone Layout 1 | . 1 . . Fabricator Hacks . | . . . . Repair Station Hacks . | . . . . Recycling Unit Hacks 5 | . 5 . . Process 1 | . 1 . . Report Inventory 1 | . 1 . . Retrieve Matter 1 | . 1 . . Retrieve Components 2 | . 2 . . Scanalyzer . | . . . . Garrison Access Hacks . | . . . . Unauthorized Hacks . | . . . . Terminals . | . . . . Fabricators . | . . . . Repair Stations . | . . . . Recycling Units . | . . . . Scanalyzers . | . . . . Garrison Access . | . . . . Data Cores Recovered . | . . . . Used . | . . . . Hacking Detections 5 | . 5 . . Full Trace Events 1 | . 1 . . Feedback Events . | . . . . Feedback Blocked . | . . . . Robot Schematics Acquired . | . . . . Robots Built . | . . . . Authchips . | . . . . Time . | . . . . Total Robot Build Rating . | . . . . Part Schematics Acquired . | . . . . Parts Built . | . . . . Authchips . | . . . . Time . | . . . . Total Part Build Rating . | . . . . Parts Repaired . | . . . . Time . | . . . . Parts Recycled . | . . . . Recycled Matter 71 | . 71 . . Retrieved Matter 71 | . 71 . . Retrieved Components 10 | . 10 . . Parts Scanalyzed . | . . . . Part Schematics Acquired . | . . . . Parts Damaged . | . . . . Bothacking | -11 -10 -10 -10 ------------ Run | Yrd Mat Min Sub Used RIF Installer . | . . . . Robots Hacked . | . . . . Non-combat . | . . . . Combat . | . . . . Robot Hacks Applied . | . . . . Relay Couplers Released . | . . . . Fabnet Peak Effective % . | . . . . Robots Rewired . | . . . . Allies Hacked . | . . . . Hacks Repelled . | . . . . Allies | -11 -10 -10 -10 -------- Run | Yrd Mat Min Sub Total Allies 3 | . . 3 . Largest Group 3 | . . 3 . Highest-Rated Group 40 | . . 40 . Highest-Rated Ally 16 | . . 16 . Total Orders . | . . . . Ally Attacks 23 | . . 23 . Total Damage 245 | . . 245 . Kills 5 | . . 5 . Allies Corrupted . | . . . . Allies Melted . | . . . . Intel | -11 -10 -10 -10 ------- Run | Yrd Mat Min Sub Robot Analysis Total . | . . . . Derelict Logs Recovered 2 | . . 1 1 Drone Launches . | . . . . Drone Recoveries . | . . . . Exploration | -11 -10 -10 -10 ------------- Run | Yrd Mat Min Sub Turns Passed 2225 | 64 879 1005 277 Spaces Moved 1172 | 44 561 449 118 Core 6 | 5 . . 1 Treads . | . . . . Legs 1166 | 39 561 449 117 Wheels . | . . . . Hover . | . . . . Flight . | . . . . Fastest Speed 50 | 50 120 190 190 Average Speed 157 | 115 127 190 191 Slowest Speed 400 | 120 190 190 400 Overloaded Moves . | . . . . Propulsion Burnouts . | . . . . Robots Hopped . | . . . . Cave-ins Triggered . | . . . . Exploration Rate (%) 40 | 3 68 82 8 Regions Visited 3 Branch Regions 2 Pre-discovered Areas 1 | . . . 1 Known Exits Taken 1 | . . 1 . Unknown Exits Taken 2 | 1 1 . . Scrap Searched 1 | . . 1 . Spaces Dug 3 | . . 3 . Terrain Destroyed 23 | . . 4 19 Melee . | . . . . Projectile 4 | . . 4 . AOE 19 | . . . 19 Terrain Rammed . | . . . . Walls Destroyed . | . . . . Machines Disabled . | . . . . Actions | -11 -10 -10 -10 --------- Run | Yrd Mat Min Sub Total 1392 | 52 656 543 141 Wait 106 | . 37 61 8 Move 1169 | 43 560 448 118 Hop . | . . . . Pick Up 13 | 2 8 2 1 Fast Attach 8 | 6 2 . . Attach 3 | . . 1 2 Detach 1 | . 1 . . Swap 10 | . 7 3 . Drop 6 | . 6 . . Fire 76 | 1 35 28 12 Melee . | . . . . Ram . | . . . . Kick . | . . . . Crush . | . . . . Escape Stasis . | . . . . Rewire . | . . . . Trap . | . . . . Miscellaneous . | . . . . Route ------- -11/Scrapyard -10/Materials (discovered 3 exits: [*Mat] / [*Min x2]) -10/Mines (discovered 2 exits: [*Mat] / *Sub) -10/Subcaves (discovered 1 exit: [*Mat]) History --------- Turn | Location | Event 8 | -11/Scrapyard | Discovered new exit (range 16) 65 | -11/Scrapyard | Entered Materials 290 | -10/Materials | Discovered new exit (range 14) 317 | -10/Materials | Build established: Mutant 416 | -10/Materials | Discovered new exit (range 5) 795 | -10/Materials | Discovered new exit (range 13) 944 | -10/Materials | Entered Mines 1081 | -10/Mines | Assisted by bots powering up and referring to "LRC-V3" 1244 | -10/Mines | Discovered new exit (range 9) 1367 | -10/Mines | Identified exit to Subcaves 1949 | -10/Mines | Entered Subcaves 2023 | -10/Subcaves | Discovered new exit (range 8) 2166 | -10/Subcaves | Ambushed by swarm of Subdwellers 2213 | -10/Subcaves | Core integrity fell below 50% 2223 | -10/Subcaves | Core integrity fell below 20% 2226 | -10/Subcaves | Destroyed by A7-VTL(R) with Subdweller Beam Cannon Last Messages --------------- 02168_ O6-6I5(R) emerges from the Twisted Machinery. 02168_ D7-KZW(R) emerges from the Twisted Machinery. 02168_ Assault Rifle destroyed. 02169_ D7-KZW(R) destroyed. 02170_ XK-4NC(R) emerges from the Twisted Machinery. 02171_ HV Slug penetrates XK-4NC(R). 02208_ A7-VTL(R): "ARGHSUB!" 02210_ Mining Laser destroyed. 02212_ Aluminum Leg destroyed. 02215_ R1-TBU(R) destroyed. 02217_ Lgt. Nuclear Core destroyed. 02218_ O6-6I5(R) destroyed. 02220_ Assault Rifle destroyed. 02221_ 3H-2H0(R) destroyed. 02223_ NG-NTG(R) affixes Scrap Shield Fragment to Scrap Shield. 02224_ Grenade Launcher destroyed. Map ----- +----------------------------------------------------+ | ??????????????#"" ##??????????????????????? | | ??????????????#""" ##?????????????????????? | | ??????????????##""" #?????????????????????? | | ???????????????#""""""& #?????????????????????? | | ??????????????# """"""!& ##?????????????????????? | | ??????????????# ""###"&[##??????????????????????? | | ??????????????#"""??#%&"##??????????????????????? | | ???????????????? ?##%%""##?????????????????????? | | ???????????????????#%"""""#???????????????#?????? | | ???????????????????#""""""#?####????????# ??????? | | ????????????????????#""""#### #??????? ???????? | | ????????????????????# ### ###???? #????????? | | ????????????????????# ### #### #?????????? | | ????????????????????# ### u #?????????? | | ????????????????????# ## #?????????? | | ????????????????????# ## ## #?????????? | | ????????????????????## ## #???#?????????? | | ???????????????????########## #?????????????? | | ??????????????????## # #&&%[ ##????????????? | | ??????????????????# %& #????????????? | | ??????????????????# #????????????? | | ??????????????????# ##?????????????? | | ??????????????????# ##???????????????? | | ??????????????????# ##???????????????? | | ??????????????????#;; ;#???????????????? | | ??????????????????## @ #???????????????? | | ?????????????????# ;##???????????????? | | ?????????????????# #?????????????? | | ?????????????????### #?????????????? | | ???????????????????## #?????????????? | | ????????????????????# R #????????????? | | ????????????????????## #????????????? | | ?????????????????????# ##; #????????????? | | ????????????????????? #?#;!% ###????????????? | | ?????????????????????# ??# R ## ??????????????? | | ????????????????????? ?? ? ?????????????? | | ????????????????????? ??? ? ????????????? | | ????????????????????? ??? ??????????????? | | ????????????????????? #??? # ##????????????????? | | ???????????????????? #????#?#???????????????????? | | ????????????????????????????????????????????????? | | ????????????????????????????????????????????????? | | ????????????????????????????????????????????????? | | ????????????????????????????????????????????????? | | ????????????????????????????????????????????????? | | ????????????????????????????????????????????????? | | ????????????????????????????????????????????????? | | ????????????????????????????????????????????????? | | ????????????????????????????????????????????????? | | ????????????????????????????????????????????????? | +----------------------------------------------------+ Best States ------------- Heat Dissipation 25 Energy Generation 14 Energy Capacity 265 Matter Stores 450 Matter Capacity 450 Sight Range 16 Terrain Scan Density 10 Evasion (%) 55 Item Schematics ----------------- None Robot Schematics ------------------ None Fabricated ------------ Nothing Alien Tech Used ----------------- None Achievements -------------- None Challenges ------------ None Game ------ Seed SniperMiningDesublimator Manual? 0 Play Time 00:21:15 Cumulative 6.6 hours Start 2024.04.08 @ 17:31:48 End 2024.04.08 @ 17:51:19 Sessions 1 Manual Loads 0 Difficulty Rogue Special Mode None Game No. 10 Rogue 10 Adventurer 0 Explorer 0 Win Type - Total 0 Types 0/0/0/0/0/0/0/0/0 Lore% 14 Gallery% 11 Achievement% 11 Wizard Run 0 Options --------- Layout 1 ASCII 0 Keyboard 0 Movement Mouse Keybinds 0 Fullscreen 2 Font 24/Smallcaps Map View 50x35 Zoom Use 0% Tactical HUD 1 Map Filters NONE Filters NONE Steam 1 RUN: f08006f8-0a0f-4665-9802-bacaea29bb07